bitfinex/quotes_SOLUSD_20220103
["timestamp","ask_amount","ask_price","bid_price","bid_amount"]
[1641202507111,75.9409996,172.79,172.74,8.9432]
[1641202508113,1.6144996,172.77,172.74,8.9432]
[1641202508315,3.03219997,172.76,172.74,8.9432]
[1641202508548,6.06439994,172.76,172.74,8.9432]
[1641202512145,3.03219997,172.76,172.74,8.9432]
[1641202512354,1.6144996,172.79,172.74,8.9432]
[1641202512947,1.6144996,172.79,172.74,16.1612]
[1641202513146,33.30470136,172.82,172.74,16.1612]
[1641202513550,33.30470136,172.82,172.75,8.1]
[1641202513755,33.30470136,172.82,172.78,8.6798]
[1641202513950,1.6144996,172.82,172.78,11.32417268]
[1641202514150,1.6144996,172.83,172.78,11.58417268]
[1641202514751,1.6144996,172.84,172.78,11.58417268]
[1641202514958,29.5671304,172.84,172.78,11.58417268]
[1641202515354,1.6144996,172.83,172.78,11.58417268]
[1641202515954,29.5671304,172.84,172.78,11.58417268]
[1641202517459,27.9526308,172.84,172.78,11.58417268]
[1641202518661,27.9526308,172.84,172.78,8.9398]
[1641202519461,29.5671304,172.84,172.78,8.9398]
[1641202522391,27.9526308,172.84,172.78,8.9398]
[1641202530408,27.9526308,172.84,172.78,8.6798]
[1641202531507,29.5671304,172.84,172.78,8.6798]
[1641202532308,1.6144996,172.82,172.78,8.9398]
[1641202532914,1.6144996,172.83,172.78,8.9398]
[1641202534712,29.5671304,172.84,172.78,8.9398]
[1641202542920,1.6144996,172.84,172.78,8.9398]
[1641202544519,1.6144996,172.86,172.78,8.9398]
[1641202545718,104.07041459,172.87,172.78,8.9398]
[1641202546319,80.8923996,172.87,172.78,8.9398]
[1641202546722,1.6144996,172.87,172.79,8.1]
[1641202546922,1.6144996,172.87,172.83,8.6766]
[1641202547120,1.6144996,172.87,172.84,2.96945304]
[1641202547320,1.6144996,172.88,172.84,2.96945304]
[1641202547520,1.6144996,172.88,172.84,3.22945304]
[1641202547921,76.9269996,172.9,172.84,3.22945304]
[1641202548121,76.9269996,172.9,172.87,8.6762]
[1641202548324,6.06439994,172.89,172.87,8.6762]
[1641202548522,6.06439994,172.89,172.87,8.9362]
[1641202552626,1.6144996,172.89,172.87,8.9362]
[1641202554756,24.0,172.88,172.87,8.9362]
[1641202555959,27.03219997,172.88,172.87,8.9362]
[1641202556760,30.06439994,172.88,172.87,8.9362]
[1641202559859,30.06439994,172.88,172.87,8.6762]
[1641202560359,30.06439994,172.88,172.85,8.6773]
[1641202560559,30.06439994,172.88,172.72,28.2728]
[1641202560759,73.878,172.87,172.77,2.30518242]
[1641202560959,22.7384378,172.85,172.77,2.30518242]
[1641202561161,22.7384378,172.85,172.78,28.9294]
[1641202561960,22.7384378,172.85,172.78,29.1894]
[1641202562359,23.9616378,172.85,172.81,8.6789]
[1641202562563,23.9616378,172.85,172.81,8.9389]
[1641202562764,25.5761374,172.85,172.81,8.9389]
[1641202563165,24.3529374,172.85,172.81,8.6789]
[1641202564563,24.3529374,172.85,172.81,8.9389]
[1641202564762,1.6144996,172.84,172.81,8.9389]
[1641202566169,6.06439994,172.83,172.81,8.9389]
[1641202569373,3.03219997,172.83,172.81,8.9389]
[1641202569575,24.3529374,172.85,172.81,8.9389]
[1641202569772,22.7384378,172.85,172.81,8.9389]
[1641202573707,22.7384378,172.85,172.81,8.6789]
[1641202575108,22.7384378,172.85,172.81,8.9389]
[1641202579313,24.3529374,172.85,172.81,8.9389]
[1641202579721,22.7384378,172.85,172.81,8.9389]
[1641202580318,24.3529374,172.85,172.81,8.9389]
[1641202581118,1.6144996,172.86,172.81,8.9389]
[1641202581920,75.2156,172.87,172.81,8.9389]
[1641202582921,73.878,172.87,172.81,8.9389]
[1641202586524,73.878,172.87,172.82,2.63887019]
[1641202586724,73.878,172.87,172.84,8.6772]
[1641202586925,6.06439994,172.86,172.84,8.6772]
[1641202587227,6.06439994,172.86,172.84,8.9372]
[1641202587424,123.45534324,172.88,172.84,8.9372]
[1641202589723,29.45534324,172.88,172.84,8.9372]
[1641202589925,1.2506,172.9,172.84,8.9372]
[1641202590328,0.00734182,172.91,172.84,8.9372]
[1641202590827,8.68474182,172.91,172.84,8.9372]
[1641202591027,28.92566908,172.9,172.84,8.9372]
[1641202600263,28.92566908,172.9,172.84,8.6772]
[1641202602567,28.92566908,172.9,172.84,8.9372]
[1641202619582,28.92566908,172.9,172.84,8.6772]
[1641202619781,28.92566908,172.9,172.74,8.1]
[1641202619782,44.21266908,172.9,172.74,8.1]
[1641202619984,44.97266908,172.9,172.81,8.679]
[1641202620186,44.97266908,172.9,172.74,1.2943]
[1641202620187,1.2522,172.89,172.74,1.2943]
[1641202620383,8.1,172.88,172.74,1.2943]
[1641202620583,8.36,172.88,172.75,3.02996916]
[1641202620784,8.6809,172.85,172.75,3.02996916]
[1641202620986,14.3109,172.85,172.75,3.02996916]
[1641202621484,14.3109,172.85,172.75,3.28996916]
[1641202621686,14.3109,172.85,172.75,3.02996916]
[1641202622284,1.3088,172.84,172.76,1.2889]
[1641202622588,1.3088,172.84,172.79,8.6801]
[1641202622785,90.1529,172.86,172.79,8.6801]
[1641202622986,81.4729,172.86,172.79,8.9401]
[1641202627426,90.1529,172.86,172.79,8.9401]
[1641202629528,81.4729,172.86,172.79,8.9401]
[1641202631329,90.1529,172.86,172.79,8.9401]
[1641202631831,90.1529,172.86,172.79,0.26]
[1641202632031,90.1529,172.86,172.77,8.9407]
[1641202632230,90.6529,172.86,172.77,8.9407]
[1641202632632,91.8969,172.86,172.77,8.9407]
[1641202632834,91.8969,172.86,172.75,3.02996916]
[1641202633034,91.8969,172.86,172.76,8.6816]
[1641202633432,95.17308298,172.86,172.75,3.02996916]
[1641202634535,95.17308298,172.86,172.75,3.28996916]
[1641202634733,91.8969,172.86,172.75,3.28996916]
[1641202635140,91.3969,172.86,172.75,3.28996916]
[1641202635335,91.3969,172.86,172.75,11.97186916]
[1641202635966,91.8969,172.86,172.76,1.2416]
[1641202636138,91.3969,172.86,172.76,1.2416]
[1641202636340,91.3969,172.86,172.79,8.68]
[1641202636538,91.3969,172.86,172.79,8.94]
[1641202637339,91.8969,172.86,172.79,8.94]
[1641202638041,91.3969,172.86,172.79,8.94]
[1641202638241,91.8969,172.86,172.79,8.94]
[1641202639040,91.3969,172.86,172.79,8.94]
[1641202639743,82.7169,172.86,172.79,8.94]
[1641202641345,83.2169,172.86,172.79,0.26]
[1641202641546,83.2169,172.86,172.78,8.9406]
[1641202641747,82.7169,172.86,172.78,8.9406]
[1641202642347,91.3969,172.86,172.78,8.9406]
[1641202645948,82.7169,172.86,172.78,8.9406]
[1641202646351,73.027,172.87,172.78,8.9406]
[1641202646548,98.49738298,172.89,172.78,13.5496]
[1641202646850,94.0,172.89,172.78,13.5496]
[1641202647047,94.0,172.89,172.78,14.97629368]
[1641202647254,94.0,172.89,172.79,1.3115]
[1641202647649,94.0,172.89,172.84,8.6766]
[1641202648048,94.0,172.89,172.84,8.9366]
[1641202649251,94.0,172.89,172.84,0.26]
[1641202649652,94.0,172.89,172.83,8.9381]
[1641202677405,28.92566908,172.9,172.83,8.9381]
[1641202678206,28.92566908,172.9,172.83,10.1857]
[1641202680809,28.92566908,172.9,172.83,9.9257]
[1641202682112,28.92566908,172.9,172.83,10.1857]
[1641202682711,28.92566908,172.9,172.83,9.9257]
[1641202684016,28.92566908,172.9,172.83,10.1857]
[1641202696755,28.92566908,172.9,172.83,9.9257]
[1641202698159,28.92566908,172.9,172.83,10.1857]
[1641202706864,28.92566908,172.9,172.83,8.6781]
[1641202707067,8.1,172.89,172.81,8.6792]
[1641202707265,8.1,172.89,172.73,6.17128992]
[1641202707465,2.75329368,172.88,172.73,4.93418992]
[1641202707664,8.1,172.87,172.73,4.93418992]
[1641202707865,73.3757,172.86,172.73,4.93418992]
[1641202708068,16.781,172.85,172.74,2.64886791]
[1641202708267,18.0625,172.85,172.74,2.64886791]
[1641202708866,18.0625,172.85,172.74,2.90886791]
[1641202709269,18.0625,172.85,172.75,8.6808]
[1641202709471,18.0625,172.85,172.75,8.9408]
[1641202709672,9.3815,172.85,172.75,8.9408]
[1641202710677,1.63258687,172.87,172.75,15.0059]
[1641202710874,1.63258687,172.87,172.76,8.1]
[1641202711071,1.63258687,172.87,172.81,8.6777]
[1641202711272,1.63258687,172.87,172.82,2.90169503]
[1641202711474,1.3492,172.89,172.82,3.16169503]
[1641202712176,106.25555595,172.9,172.82,11.83899503]
[1641202712378,77.32988687,172.9,172.82,11.83899503]
[1641202712677,75.6973,172.9,172.82,11.83899503]
[1641202713880,1.63258687,172.93,172.82,11.83899503]
[1641202714079,1.63258687,172.93,172.83,8.1]
[1641202714281,1.63258687,172.93,172.88,8.6738]
[1641202714481,1.63258687,172.93,172.88,11.46636356]
[1641202714682,95.63258687,172.95,172.88,11.46636356]
[1641202715884,94.0,172.95,172.88,11.46636356]
[1641202716280,94.0,172.95,172.88,8.9338]
[1641202725908,95.63258687,172.95,172.88,8.9338]
[1641202727609,95.63258687,172.95,172.88,8.6738]
[1641202729110,95.63258687,172.95,172.88,8.9338]
[1641202730113,1.63258687,172.94,172.88,8.9338]
[1641202731515,95.63258687,172.95,172.89,8.1]
[1641202731715,95.63258687,172.95,172.92,8.6722]
[1641202731915,95.63258687,172.95,172.93,2.4980447]
[1641202732118,94.0,172.95,172.93,7.8990447]
[1641202732314,94.0,172.95,172.93,8.1590447]
[1641202733318,94.0,172.95,172.94,8.6714]
[1641202733616,94.0,172.95,172.94,0.26]
[1641202733818,97.03219997,172.95,172.94,0.26]
[1641202734218,3.03219997,172.95,172.89,37.266]
[1641202734417,0.98995893,172.97,172.89,37.266]
[1641202734618,0.98995893,172.97,172.89,39.74378795]
[1641202735119,0.98995893,172.97,172.92,8.6723]
[1641202735518,0.98995893,172.97,172.92,8.9323]
[1641202739623,0.98995893,172.97,172.92,15.3213]
[1641202741430,0.98995893,172.97,172.92,23.4213]
[1641202743433,0.98995893,172.97,172.92,23.1613]
[1641202744854,0.98995893,172.97,172.92,23.4213]
[1641202745852,0.98995893,172.97,172.92,17.0323]
[1641202748957,0.98995893,172.97,172.92,16.7723]
[1641202750359,0.98995893,172.97,172.92,17.0323]
[1641202751961,1.63258687,172.99,172.92,8.9323]
[1641202753162,1.63258687,173.0,172.92,8.9323]
[1641202753764,27.93833692,173.01,172.92,8.9323]
[1641202754564,1.63258687,173.0,172.92,8.9323]
[1641202754763,1.63258687,173.0,172.92,8.6723]
[1641202755363,1.63258687,172.99,172.92,8.6723]
[1641202755966,1.63258687,172.98,172.92,8.9323]
[1641202757468,1.63258687,172.99,172.92,8.9323]
[1641202758671,1.63258687,172.99,172.9,10.0147]
[1641202758869,2.13258687,172.99,172.9,8.6736]
[1641202759071,2.13258687,172.99,172.85,37.0143]
[1641202759271,1.2897,172.98,172.86,1.2518]
[1641202759470,1.63258687,172.97,172.86,1.2518]
[1641202759872,1.63258687,172.97,172.91,8.6735]
[1641202760275,1.63258687,172.98,172.91,8.9335]
[1641202761974,2.13258687,172.98,172.91,8.9335]
[1641202762776,1.63258687,172.98,172.91,8.9335]
[1641202765677,1.63258687,172.99,172.91,8.9335]
[1641202766078,27.93833692,173.01,172.91,8.9335]
[1641202766478,27.93833692,173.01,172.91,10.2839]
[1641202766679,1.63258687,173.0,172.91,10.2839]
[1641202767479,27.93833692,173.01,172.91,10.2839]
[1641202768079,1.63258687,173.0,172.91,10.2839]
[1641202769783,27.93833692,173.01,172.91,10.2839]
[1641202770783,27.93833692,173.01,172.91,17.6929]
[1641202771604,28.43833692,173.01,172.91,17.6929]
[1641202772606,1.63258687,173.0,172.91,17.6929]
[1641202773408,1.63258687,173.01,172.91,17.6929]
[1641202773608,1.63258687,173.01,172.92,8.1]
[1641202773807,1.63258687,173.01,172.96,8.6698]
[1641202774008,1.63258687,173.01,172.96,13.6938]
[1641202774508,94.0,173.02,172.96,13.6938]
[1641202774913,94.0,173.02,172.97,8.1]
[1641202775110,94.0,173.02,172.97,8.36]
[1641202775311,94.0,173.02,172.99,11.69477141]
[1641202775513,94.0,173.02,172.99,8.6677]
[1641202776111,3.03219997,173.01,172.99,8.6677]
[1641202776314,94.0,173.02,172.99,8.6677]
[1641202776614,94.0,173.02,173.01,8.6674]
[1641202776821,94.0,173.02,173.01,14.3184]
[1641202777015,94.0,173.02,173.01,14.5784]
[1641202777416,30.447311,173.06,173.01,14.5784]
[1641202777812,30.447311,173.06,173.01,8.9274]
[1641202781422,30.447311,173.06,173.01,0.26]
[1641202781621,30.447311,173.06,172.97,8.1]
[1641202781920,31.736811,173.06,172.97,8.1]
[1641202782321,33.36939787,173.06,172.98,2.8649274]
[1641202782523,33.36939787,173.06,172.98,11.5345274]
[1641202782722,32.07989787,173.06,172.98,11.5345274]
[1641202782920,1.63258687,173.05,172.98,11.5345274]
[1641202783120,1.63258687,173.05,172.98,11.7945274]
[1641202783520,1.63258687,173.05,172.98,8.9296]
[1641202784323,32.07989787,173.06,172.98,8.9296]
[1641202785223,1.63258687,173.06,172.98,8.9296]
[1641202785426,1.63258687,173.06,172.98,17.0296]
[1641202785824,1.63258687,173.07,172.98,17.0296]
[1641202786626,0.98995893,173.08,172.98,18.3091]
[1641202788926,0.98995893,173.08,172.98,18.0491]
[1641202790031,1.63258687,173.07,172.98,18.0491]
[1641202790729,2.87658687,173.07,172.98,20.52309091]
[1641202792330,2.87658687,173.07,172.98,20.78309091]
[1641202793031,1.63258687,173.06,172.98,20.78309091]
[1641202794834,2.87658687,173.07,172.98,20.78309091]
[1641202795435,1.244,173.07,172.98,20.78309091]
[1641202796035,1.244,173.07,172.98,12.68309091]
[1641202796436,1.744,173.07,172.98,11.40359091]
[1641202798859,10.4137,173.07,172.98,11.40359091]
[1641202799864,10.4137,173.07,172.98,11.14359091]
[1641202800264,1.63258687,173.05,172.98,11.14359091]
[1641202801064,1.63258687,173.05,172.98,11.40359091]
[1641202802765,26.9197944,173.03,172.98,8.9296]
[1641202803767,26.9197944,173.03,172.98,0.26]
[1641202803967,26.9197944,173.03,172.97,8.9304]
[1641202804865,27.4197944,173.03,172.97,0.26]
[1641202805065,27.4197944,173.03,172.96,8.931]
[1641202805271,27.4197944,173.03,172.96,8.671]
[1641202805467,36.0916944,173.03,172.93,1.2809]
[1641202805666,36.0916944,173.03,172.89,38.3371]
[1641202805866,150.912,173.02,172.92,8.6726]
[1641202806267,1.63258687,173.01,172.92,11.59622003]
[1641202806465,2.13258687,173.01,172.92,11.59622003]
[1641202806967,2.13258687,173.01,172.92,8.6726]
[1641202807369,10.80528687,173.01,172.92,8.6726]
[1641202807568,10.80528687,173.01,172.92,8.9326]
[1641202807771,1.63258687,173.0,172.92,8.9326]
[1641202807969,2.13258687,173.0,172.92,8.9326]
[1641202808970,1.63258687,173.0,172.92,8.9326]
[1641202811171,10.30568687,173.0,172.92,8.9326]
[1641202811370,10.80568687,173.0,172.92,8.9326]
[1641202812573,1.63258687,172.99,172.92,8.6726]
[1641202812973,1.63258687,173.0,172.92,8.6726]
[1641202813576,1.63258687,173.0,172.92,9.9453]
[1641202813979,1.63258687,173.0,172.92,10.2053]
[1641202814178,2.85868687,173.01,172.92,10.2053]
[1641202817383,3.35868687,173.01,172.92,10.2053]
[1641202817983,1.63258687,173.0,172.92,10.2053]
[1641202818785,11.53128687,173.01,172.92,10.2053]
[1641202819592,12.03128687,173.01,172.92,8.9326]
[1641202819991,9.8987,173.01,172.92,8.9326]
[1641202823194,10.3987,173.01,172.92,8.9326]
[1641202823726,9.8987,173.01,172.92,8.6726]
[1641202823924,18.4987,173.01,172.9,8.6737]
[1641202824125,18.4987,173.01,172.86,1.2564]
[1641202824126,20.18539368,173.01,172.86,1.2564]
[1641202824927,20.18539368,173.01,172.87,2.32988597]
[1641202825125,20.18539368,173.01,172.87,2.58988597]
[1641202825327,20.18539368,173.01,172.89,8.6745]
[1641202825527,1.63258687,172.97,172.89,8.9345]
[1641202826027,26.12456445,172.96,172.89,8.9345]
[1641202835335,1.63258687,172.99,172.89,8.9345]
[1641202835735,2.85538687,173.0,172.89,8.9345]
[1641202836137,2.85538687,173.0,172.9,1.262]
[1641202836336,31.68509311,172.99,172.93,11.23550604]
[1641202836539,31.68509311,172.99,172.93,11.49550604]
[1641202841042,246.54078687,173.02,172.93,11.49550604]
[1641202841843,244.9082,173.02,172.93,11.49550604]
[1641202842043,24.99525934,173.01,172.93,11.49550604]
[1641202843646,24.99525934,173.01,172.93,8.9323]
[1641202843852,25.49525934,173.01,172.93,8.9323]
[1641202844452,25.49525934,173.01,172.93,8.6723]
[1641202844851,34.16785934,173.01,172.92,8.6732]
[1641202845252,34.42785934,173.01,172.91,2.23699079]
[1641202845651,1.2778,173.0,172.89,1.2443]
[1641202845854,8.6742,172.98,172.9,8.6742]
[1641202846051,8.6742,172.98,172.9,8.9342]
[1641202846755,8.6742,172.98,172.91,2.83548254]
[1641202846955,2.91038687,173.0,172.91,11.76928254]
[1641202847354,1.2778,173.0,172.91,11.76928254]
[1641202848355,1.2778,173.0,172.92,1.2282]
[1641202848555,1.2778,173.0,172.93,8.6727]
[1641202848957,1.2778,173.0,172.93,8.9327]
[1641202849359,33.66795934,173.01,172.93,8.9327]
[1641202851884,34.16795934,173.01,172.93,0.26]
[1641202852079,34.42795934,173.01,172.91,11.50898254]
[1641202852280,8.1,173.0,172.91,2.83548254]
[1641202852479,8.6744,172.97,172.91,2.83548254]
[1641202853179,1.63258687,172.99,172.91,2.83548254]
[1641202853378,2.13258687,172.99,172.91,3.09548254]
[1641202853779,0.5,172.99,172.91,3.09548254]
[1641202853980,10.23258687,173.0,172.91,3.09548254]
[1641202854383,8.6734,172.99,172.91,11.76918254]
[1641202854583,1.63258687,173.0,172.91,11.76918254]
[1641202854883,1.63258687,173.0,172.92,1.42669368]
[1641202855083,1.63258687,173.0,172.93,8.1]
[1641202855481,24.99525934,173.01,172.93,8.36]
[1641202855682,24.99525934,173.01,172.97,8.6696]
[1641202855882,24.99525934,173.01,172.97,11.71484308]
[1641202856084,24.99525934,173.01,172.97,11.97484308]
[1641202856686,24.99525934,173.01,172.97,8.9296]
[1641202858087,94.0,173.02,172.97,8.9296]
[1641202860290,28.95731688,173.04,172.97,8.9296]
[1641202862993,29.45731688,173.04,172.97,8.9296]
[1641202863693,1.63258687,173.03,172.97,8.9296]
[1641202863894,10.80418687,173.03,172.97,8.9296]
[1641202864292,1.63258687,173.02,172.97,8.9296]
[1641202865193,10.30418687,173.03,172.93,1.2206]
[1641202865394,10.80418687,173.03,172.93,1.2206]
[1641202865897,8.6732,173.0,172.9,28.9092]
[1641202866309,9.1732,173.0,172.91,2.3122615]
[1641202866706,8.6732,173.0,172.93,8.673]
[1641202867106,8.6732,173.0,172.93,8.933]
[1641202867907,9.1732,173.0,172.93,8.933]
[1641202868934,9.1732,173.0,172.93,0.26]
[1641202869334,9.1732,173.0,172.89,1.2937]
[1641202869535,17.5332,173.0,172.89,1.2937]
[1641202870137,1.2633,172.99,172.89,1.2937]
[1641202870339,8.6747,172.97,172.9,8.6747]
[1641202870537,27.87115548,172.96,172.9,8.6747]
[1641202870737,27.87115548,172.96,172.9,8.9347]
[1641202870938,28.37115548,172.96,172.9,8.6747]
[1641202871141,28.37115548,172.96,172.89,1.2937]
[1641202871340,28.37115548,172.96,172.86,28.9154]
[1641202871540,28.37115548,172.96,172.87,1.3093]
[1641202872442,37.04615548,172.96,172.89,8.6752]
[1641202873039,37.04615548,172.96,172.89,8.9352]
[1641202874939,37.04615548,172.96,172.89,8.6752]
[1641202875540,36.54615548,172.96,172.89,8.6752]
[1641202875742,37.04615548,172.96,172.88,8.6758]
[1641202876341,37.30615548,172.96,172.88,8.9358]
[1641202876544,38.56195548,172.96,172.88,8.9358]
[1641202876743,38.56195548,172.96,172.88,0.26]
[1641202876946,38.56195548,172.96,172.87,4.61715221]
[1641202878445,38.56195548,172.96,172.87,13.29345221]
[1641202879649,38.30195548,172.96,172.87,13.29345221]
[1641202885356,37.80195548,172.96,172.87,13.29345221]
[1641202885753,9.9308,172.96,172.87,13.29345221]
[1641202885955,76.4333,172.99,172.87,20.48045221]
[1641202886154,76.4333,172.99,172.87,28.58045221]
[1641202886854,99.17641334,172.99,172.87,28.58045221]
[1641202888656,16.7725,173.01,172.87,30.00714589]
[1641202888955,8.1,173.01,172.87,30.00714589]
[1641202889556,35.71667562,173.01,172.87,30.00714589]
[1641202890360,36.21667562,173.01,172.87,30.00714589]
[1641202890957,35.71667562,173.01,172.87,30.00714589]
[1641202891457,36.21667562,173.01,172.87,28.58045221]
[1641202891858,44.88917562,173.01,172.87,28.58045221]
[1641202892058,44.38917562,173.01,172.87,28.58045221]
[1641202892357,44.38917562,173.01,172.87,30.00714589]
[1641202892558,35.71667562,173.01,172.87,30.00714589]
[1641202897877,36.21667562,173.01,172.87,21.39345221]
[1641202898070,35.71667562,173.01,172.87,21.39345221]
[1641202898268,36.21667562,173.01,172.87,21.39345221]
[1641202898670,1.2577,173.0,172.87,21.39345221]
[1641202905202,1.2577,173.0,172.87,22.82014589]
[1641202908709,27.61667562,173.01,172.87,22.82014589]
[1641202910312,1.3101,173.0,172.87,22.82014589]
[1641202911713,10.30448687,173.03,172.87,22.82014589]
[1641202911913,1.63258687,173.03,172.87,22.82014589]
[1641202912514,77.01788687,173.04,172.87,22.82014589]
[1641202912715,23.88404032,173.03,172.87,22.82014589]
[1641202913414,1.2296,173.02,172.87,22.82014589]
[1641202914218,1.2296,173.02,172.87,22.56014589]
[1641202914416,10.6616,173.02,172.87,22.56014589]
[1641202914615,8.1,173.01,172.87,22.56014589]
[1641202915017,8.86,173.01,172.87,22.56014589]
[1641202915619,10.49258687,173.01,172.87,22.82014589]
[1641202915819,1.2245,173.0,172.87,22.56014589]
[1641202916021,8.1,172.99,172.87,8.6763]
[1641202916420,10.28669368,172.99,172.86,8.6768]
[1641202916621,1.2672,172.98,172.86,8.6768]
[1641202916822,27.47690001,172.96,172.86,8.6768]
[1641202917020,8.6769,172.93,172.86,11.37789553]
[1641202917419,9.1769,172.93,172.86,11.37789553]
[1641202918724,9.1769,172.93,172.86,11.63789553]
[1641202919120,8.6769,172.93,172.86,11.63789553]
[1641202920523,8.6759,172.94,172.86,11.63789553]
[1641202920926,1.2549,172.95,172.86,11.63789553]
[1641202921923,76.2917,172.96,172.86,11.63789553]
[1641202922524,76.2917,172.96,172.87,1.3437]
[1641202922724,76.2917,172.96,172.91,8.6741]
[1641202923124,76.2917,172.96,172.91,8.9341]
[1641202924525,76.2917,172.96,172.91,0.26]
[1641202925027,76.2917,172.96,172.9,0.26]
[1641202925526,76.2917,172.96,172.87,1.6037]
[1641202925730,76.2917,172.96,172.85,28.9171]
[1641202925930,93.8267,172.96,172.84,1.2528]
[1641202926131,1.3189,172.95,172.82,30.1713]
[1641202926530,2.0789,172.95,172.82,30.1713]
[1641202926737,78.1622,172.95,172.82,30.1713]
[1641202926933,8.6771,172.92,172.85,8.6769]
[1641202927134,8.6771,172.92,172.85,8.9369]
[1641202927332,77.9022,172.95,172.85,8.9369]
[1641202927733,77.4022,172.95,172.85,8.9369]
[1641202929353,84.3917,172.96,172.85,8.9369]
[1641202929557,76.2917,172.96,172.85,8.9369]
[1641202929954,76.2917,172.96,172.9,8.6746]
[1641202930155,76.2917,172.96,172.91,3.04449457]
[1641202930555,76.2917,172.96,172.91,3.30449457]
[1641202932356,76.2917,172.96,172.91,11.97879457]
[1641202933159,1.63258687,172.99,172.91,11.97879457]
[1641202933760,1.63258687,172.99,172.91,18.28379457]
[1641202934361,79.052,173.01,172.91,18.28379457]
[1641202935863,79.052,173.01,172.92,1.2435]
[1641202936064,79.052,173.01,172.95,8.6722]
[1641202936465,79.052,173.01,172.95,8.9322]
[1641202936668,87.7246,173.01,172.95,0.26]
[1641202937066,87.7246,173.01,172.93,8.673]
[1641202937464,87.7246,173.01,172.93,8.933]
[1641202937465,89.0293,173.01,172.93,8.933]
[1641202938067,90.66188687,173.01,172.93,8.933]
[1641202941470,89.0293,173.01,172.93,8.933]
[1641202942671,89.0293,173.01,172.93,8.673]
[1641202942873,89.7893,173.01,172.93,8.673]
[1641202943874,89.7893,173.01,172.93,8.933]
[1641202947602,89.7893,173.01,172.93,0.26]
[1641202948002,89.7893,173.01,172.92,8.674]
[1641202948203,8.6753,172.96,172.89,2.59294274]
[1641202948404,0.5,172.96,172.89,2.59294274]
[1641202948614,31.52552532,172.95,172.89,2.59294274]
[1641202949409,40.20102532,172.95,172.89,8.6753]
[1641202949606,40.20102532,172.95,172.89,0.26]
[1641202949807,40.70102532,172.95,172.89,0.26]
[1641202950008,40.20102532,172.95,172.85,30.4288]
[1641202950408,1.2767,172.94,172.86,2.21487475]
[1641202950609,1.2767,172.94,172.86,2.47487475]
[1641202952412,1.2767,172.94,172.89,8.6754]
[1641202952613,1.2767,172.94,172.89,8.9354]
[1641202956215,10.30698687,172.97,172.89,8.9354]
[1641202956514,1.63258687,172.97,172.89,8.9354]
[1641202956914,2.90308687,172.99,172.89,8.9354]
[1641202957116,3.40308687,172.99,172.89,8.9354]
[1641202957314,23.03768801,172.98,172.93,8.6735]
[1641202957515,23.03768801,172.98,172.93,8.9335]
[1641202957715,23.53768801,172.98,172.93,8.9335]
[1641202958317,32.21158801,172.98,172.93,8.9335]
[1641202960119,11.57648687,172.99,172.93,8.9335]
[1641202960317,1.63258687,172.99,172.93,8.9335]
[1641202960922,1.63258687,173.0,172.93,8.9335]
[1641202961122,29.33824797,172.99,172.93,8.9335]
[1641202961821,29.83824797,172.99,172.93,0.26]
[1641202962022,30.09824797,172.99,172.92,0.26]
[1641202962422,30.09824797,172.99,172.87,2.61294976]
[1641202962623,8.1,172.98,172.87,2.35294976]
[1641202962822,8.675,172.96,172.9,8.675]
[1641202963224,9.175,172.96,172.9,8.675]
[1641202963524,11.01548687,172.98,172.9,8.675]
[1641202963926,11.01548687,172.98,172.9,8.935]
[1641202964327,8.6743,172.97,172.9,8.935]
[1641202970135,9.1743,172.97,172.9,8.935]
[1641202972743,8.6743,172.97,172.9,8.935]
[1641202973571,10.30688687,172.97,172.9,8.935]
[1641202975670,8.6743,172.97,172.9,8.935]
[1641202980281,9.1743,172.97,172.9,8.935]
[1641202982282,9.1743,172.97,172.9,8.675]
[1641202982483,17.5343,172.97,172.89,8.6755]
[1641202982684,17.5343,172.97,172.85,28.9176]
[1641202982883,17.5343,172.97,172.86,1.258]
[1641202983085,1.3126,172.96,172.86,1.258]
[1641202983285,8.6776,172.91,172.82,1.2504]